Cogmind - Beta 13 @@@ ROGUE MODE // 2024.06.22 @ 23:53:20 Player: Dewgzzz Result: Destroyed by X6-R02(R) with Subdweller Machine Gun Performance ------------- Evolutions (0) 0 Regions Visited (3) 600 Robots Destroyed (24) 120 Value Destroyed (563) 563 Prototype IDs (0) 0 Alien Tech Used (0) 0 Bonus (0) 0 TOTAL SCORE: 1283 Bonus ------- None Cogmind --------- Core Integrity 0/250 Matter 294/300 Energy 250/250 System Corruption 0% Temperature Cool (0) Movement Treading (160) Location -10/Subcaves Parts ------- > --- POWER (1) -------- Ion Engine > --- PROPULSION (2) --- Improved Treads > --- UTILITY (2) ------ Small Storage Unit Core Shielding > --- WEAPON (2) ------- Autogun Subdweller Machine Gun > --- INVENTORY (8) ---- Subdweller Power Source Improved Treads Improved Treads Huge Storage Unit Seismic Detector Tractor Beam Subdweller Beam Cannon Mining Claw Peak State ------------ > --- POWER ------------ Ion Engine > --- PROPULSION ------- Improved Treads Improved Treads > --- UTILITY ---------- Small Storage Unit Subdweller Optics > --- WEAPON ----------- Autogun Autogun > --- INVENTORY -------- Subdweller Power Source Improved Treads Improved Treads Huge Storage Unit Seismic Detector Tractor Beam Mining Claw [Rating: 13] Favorites ----------- Power Light Ion Engine Engine Light Ion Engine Propulsion Improved Treads Treads Improved Treads Utility Small Storage Unit Device Seismic Detector Storage Small Storage Unit Protection Core Shielding Weapon Autogun Energy Gun Medium Laser Ballistic Gun Autogun Launcher Grenade Launcher Slashing Weapon Mining Claw Build | -11 -10 -10 -10 ------- Run | Yrd Mat Min Sub Slots Evolved . | . . . . Power . | . . . . Propulsion . | . . . . Utility . | . . . . Weapon . | . . . . Parts Attached 23 | 6 7 . 10 Power 2 | 1 . . 1 Engine 2 | 1 . . 1 Core . | . . . . Reactor . | . . . . Propulsion 4 | 2 2 . . Treads 4 | 2 2 . . Leg . | . . . . Wheel . | . . . . Hover . | . . . . Flight . | . . . . Utility 7 | 1 2 . 4 Device 4 | . 1 . 3 Storage 1 | 1 . . . Processor . | . . . . Hackware . | . . . . Protection 2 | . 1 . 1 Artifact . | . . . . Weapon 10 | 2 3 . 5 Energy Gun 2 | 2 . . . Energy Cannon . | . . . . Ballistic Gun 6 | . 2 . 4 Ballistic Cannon . | . . . . Launcher 1 | . 1 . . Special Weapon . | . . . . Impact Weapon . | . . . . Slashing Weapon 1 | . . . 1 Piercing Weapon . | . . . . Special Melee Weapon . | . . . . Unidentified Prototypes . | . . . . Parts Lost 4 | . . . 4 Power 1 | . . . 1 Propulsion 1 | . . . 1 Utility . | . . . . Weapon 2 | . . . 2 Highest Loss Streak 2 | . . . 2 To Critical Strikes . | . . . . Average Slot Usage (%) 99 | . 99 100 99 Engine 14 | . 14 14 14 Treads 27 | . 28 28 27 Device 9 | . 7 14 8 Storage 14 | . 14 14 14 Protection 4 | . 5 . 5 Ballistic Gun 22 | . 24 14 24 Launcher 4 | . . 14 2 Naked Turns . | . . . . Heaviest Build 18 | 11 15 15 18 Greatest Support 46 | 40 46 46 46 Greatest Overweight (x) . | . . . . Average Overweight (x) . | . . . . Largest Inventory Capacity 8 | 8 8 8 8 Average Capacity 7 | 7 8 8 8 Most Carried 8 | 5 8 8 8 Average Carried 7 | 3 6 8 7 Final Capacity 8 | 8 8 8 8 Final Carried 8 | 4 8 8 8 Class Distribution -------------------- 100% | Mutant Dominant Class ---------------- Mutant | -10/Materials Mutant | -10/Mines Mutant | -10/Subcaves Resources | -11 -10 -10 -10 ----------- Run | Yrd Mat Min Sub Matter Collected 808 | 219 141 10 438 Remotely 27 | . . . 27 Salvage Created 533 | . 114 30 389 Parts 41 | . 6 7 28 Haulers Intercepted . | . . . . Recyclers Shooed . | . . . . Parts Field Recycled . | . . . . Retrieved Matter . | . . . . Parts Self-Destructed 7 | . . . 7 Prevented . | . . . . Kills | -11 -10 -10 -10 ------- Run | Yrd Mat Min Sub Combat Hostiles Destroyed 24 | . 5 6 13 Guns 16 | . 5 1 10 AOE 8 | . . 5 3 Classes Destroyed 4 | . 2 . 2 Swarmer 13 | . 3 6 4 Grunt 2 | . 2 . . Sentry 1 | . . . 1 Subdweller 8 | . . . 8 Best Kill Streak 3 | . 3 3 3 Combat Bots Only 3 | . 3 3 3 Max Kills in Single Turn 2 | . 1 2 1 Gunslinging . | . . . . Exploded 2 | . . 2 1 Melee . | . . . . Uniques/NPCs Destroyed . | . . . . Combat | -11 -10 -10 -10 -------- Run | Yrd Mat Min Sub Hostile Shots Fired 86 | . 11 12 63 Missed 22 | . 5 4 13 Damage Taken 1112 | . 49 155 908 Core 256 | . 14 13 229 Absorbed by Shields . | . . . . Redirected to Shielding 7 | . . . 7 Core Remaining (%) 100 | 100 . . . Volleys Fired 53 | . 5 8 40 Largest 2 | . 2 1 2 Hottest 53 | . 46 30 53 Shots Fired 88 | . 10 8 70 Gun 76 | . 10 2 64 Cannon . | . . . . Launcher 12 | . . 6 6 Special . | . . . . Kinetic 76 | . 10 2 64 Thermal . | . . . . Explosive 12 | . . 6 6 Electromagnetic . | . . . . Robot Hit Streak 19 | . 4 5 19 Robot Miss Streak 2 | . 1 2 2 Penetration Max . | . . . . Secondary Targets 2 | . . . 2 Max Gunslinging Chain 1 | . . . 1 Shots Hit Robots 65 | . 6 4 55 Core Hits 32 | . 6 6 20 Critical Kills 1 | . . . 1 Critical Parts Destroyed . | . . . . Critical Strikes 1 | . . . 1 Destroy 1 | . . . 1 Melee Attacks 1 | . . . 1 Impact . | . . . . Slashing 1 | . . . 1 Piercing . | . . . . Sneak Attacks . | . . . . Combat Hostiles . | . . . . Follow-up Attacks . | . . . . Damage Inflicted 1685 | . 104 343 1238 Guns 925 | . 104 12 809 Cannons . | . . . . Explosions 760 | . . 331 429 Melee . | . . . . Ramming . | . . . . Kinetic 925 | . 104 12 809 Thermal . | . . . . Explosive 760 | . . 331 429 Electromagnetic . | . . . . Impact . | . . . . Slashing . | . . . . Piercing . | . . . . Highest Corruption . | . . . . Average Corruption . | . . . . Corruption Purged . | . . . . Corruption Blocked . | . . . . Overload Shots . | . . . . Overflow Damage 38 | . . 30 8 Projectiles . | . . . . Explosions 38 | . . 30 8 Melee . | . . . . Knockbacks . | . . . . Impact . | . . . . Kinetic . | . . . . Secondary . | . . . . Self-Inflicted Damage 95 | . . 95 . Shots 3 | . . 3 . Rammed . | . . . . Targets Rammed . | . . . . Kicked . | . . . . Crushed . | . . . . Highest Temperature 13 | . 6 3 13 Average Temperature 4 | . 4 3 13 Received Heat Transfer 135 | . 12 . 123 Siege Activations . | . . . . Robots Corrupted . | . . . . Combat Hostiles . | . . . . Parts Fried . | . . . . Impact Corruptions . | . . . . Robots Melted . | . . . . Combat Hostiles . | . . . . Parts Melted . | . . . . Heat Transferred . | . . . . Parts Sabotaged . | . . . . Parts Stolen . | . . . . Parts Stripped . | . . . . Power Chain Reactions . | . . . . Alert | -11 -10 -10 -10 ------- Run | Yrd Mat Min Sub Peak Influence 234 | . 99 234 . Initial 29 | . . 29 . Average 73 | . 55 111 . Maximum Alert Level 1 | . . 1 . Low Security (%) 85 | 100 100 64 . Level 1 14 | . . 35 . Level 2 . | . . . . Level 3 . | . . . . Level 4 . | . . . . Level 5 . | . . . . High Security . | . . . . Max Security . | . . . . Squads Dispatched 3 | . 3 . . Investigation 1 | . 1 . . Extermination . | . . . . Reinforcement 2 | . 2 . . Assault . | . . . . Garrison . | . . . . Intercept . | . . . . Searches Triggered . | . . . . Construction Impeded . | . . . . Haulers Reinforced . | . . . . Active Scanning Responses . | . . . . Cargo Convoy Interrupts . | . . . . Stealth | -11 -10 -10 -10 --------- Run | Yrd Mat Min Sub Distress Signals . | . . . . Communications Jammed . | . . . . Distress Signals . | . . . . Times Spotted 27 | . 6 8 13 Peak Tracking Total 3 | . 3 3 2 Tactical Retreats 1 | . . 1 . Traps | -11 -10 -10 -10 ------- Run | Yrd Mat Min Sub Traps Triggered 1 | . 1 . . Indirectly . | . . . . Trap Hack Attempts . | . . . . Triggered . | . . . . Disarmed . | . . . . Reprogrammed . | . . . . Reused . | . . . . Traps Extracted . | . . . . Installed . | . . . . Triggered . | . . . . Machines | -11 -10 -10 -10 ---------- Run | Yrd Mat Min Sub Machines Disabled . | . . . . Max in Single Turn . | . . . . Machines Repaired . | . . . . Machines Dismantled . | . . . . Machines Sabotaged . | . . . . Overloaded Fab Kills . | . . . . Hacking | -11 -10 -10 -10 --------- Run | Yrd Mat Min Sub Machines Accessed 3 | . 3 . . Terminals 2 | . 2 . . Fabricators . | . . . . Repair Stations . | . . . . Recycling Units 1 | . 1 . . Scanalyzers . | . . . . Garrison Access . | . . . . Total Hacks 7 | . 7 . . Successful 4 | . 4 . . Failed 3 | . 3 . . Catastrophic . | . . . . Database Lockouts . | . . . . Manual 2 | . 2 . . Terminals 6 | . 6 . . Fabricators . | . . . . Repair Stations . | . . . . Recycling Units 1 | . 1 . . Scanalyzers . | . . . . Garrison Access . | . . . . Terminal Hacks 2 | . 2 . . Record 1 | . 1 . . Branch Access Points 1 | . 1 . . Fabricator Hacks . | . . . . Repair Station Hacks . | . . . . Recycling Unit Hacks 1 | . 1 . . Retrieve Components 1 | . 1 . . Scanalyzer . | . . . . Garrison Access Hacks . | . . . . Unauthorized Hacks 1 | . 1 . . Terminals 1 | . 1 . . Botnet 1 | . 1 . . Fabricators . | . . . . Repair Stations . | . . . . Recycling Units . | . . . . Scanalyzers . | . . . . Garrison Access . | . . . . Data Cores Recovered . | . . . . Used . | . . . . Hacking Detections 2 | . 2 . . Full Trace Events . | . . . . Feedback Events . | . . . . Feedback Blocked . | . . . . Robot Schematics Acquired . | . . . . Robots Built . | . . . . Authchips . | . . . . Time . | . . . . Total Robot Build Rating . | . . . . Part Schematics Acquired . | . . . . Parts Built . | . . . . Authchips . | . . . . Time . | . . . . Total Part Build Rating . | . . . . Parts Repaired . | . . . . Time . | . . . . Parts Recycled . | . . . . Recycled Matter . | . . . . Retrieved Matter . | . . . . Retrieved Components 4 | . 4 . . Parts Scanalyzed . | . . . . Part Schematics Acquired . | . . . . Parts Damaged . | . . . . Bothacking | -11 -10 -10 -10 ------------ Run | Yrd Mat Min Sub Used RIF Installer . | . . . . Robots Hacked . | . . . . Non-combat . | . . . . Combat . | . . . . Robot Hacks Applied . | . . . . Relay Couplers Released . | . . . . Fabnet Peak Effective % . | . . . . Robots Rewired . | . . . . Allies Hacked . | . . . . Hacks Repelled . | . . . . Allies | -11 -10 -10 -10 -------- Run | Yrd Mat Min Sub Total Allies . | . . . . Largest Group . | . . . . Highest-Rated Group . | . . . . Highest-Rated Ally . | . . . . Total Orders . | . . . . Ally Attacks . | . . . . Total Damage . | . . . . Kills . | . . . . Allies Corrupted . | . . . . Allies Melted . | . . . . Intel | -11 -10 -10 -10 ------- Run | Yrd Mat Min Sub Robot Analysis Total . | . . . . Derelict Logs Recovered 1 | . . 1 . Drone Launches . | . . . . Drone Recoveries . | . . . . Exploration | -11 -10 -10 -10 ------------- Run | Yrd Mat Min Sub Turns Passed 3020 | 115 707 553 1645 Spaces Moved 1685 | 68 345 336 936 Core 6 | 6 . . . Treads 1679 | 62 345 336 936 Legs . | . . . . Wheels . | . . . . Hover . | . . . . Flight . | . . . . Fastest Speed 50 | 50 160 160 160 Average Speed 159 | 150 160 160 160 Slowest Speed 160 | 160 160 160 160 Overloaded Moves . | . . . . Propulsion Burnouts . | . . . . Robots Hopped . | . . . . Cave-ins Triggered . | . . . . Exploration Rate (%) 36 | 4 51 46 46 Regions Visited 3 Branch Regions 2 Pre-discovered Areas . | . . . . Known Exits Taken 1 | . 1 . . Unknown Exits Taken 2 | 1 . 1 . Scrap Searched . | . . . . Spaces Dug . | . . . . Terrain Destroyed 79 | . . 50 29 Melee . | . . . . Projectile . | . . . . AOE 79 | . . 50 29 Terrain Rammed . | . . . . Walls Destroyed . | . . . . Machines Disabled . | . . . . Actions | -11 -10 -10 -10 --------- Run | Yrd Mat Min Sub Total 1937 | 78 493 344 1022 Wait 151 | . 121 1 29 Move 1682 | 67 344 335 936 Hop . | . . . . Pick Up 15 | 5 7 . 3 Fast Attach 11 | 5 4 . 2 Attach 5 | 1 . . 4 Detach 2 | . 1 . 1 Swap 7 | . 3 . 4 Drop 10 | . 8 . 2 Fire 53 | . 5 8 40 Melee 1 | . . . 1 Ram . | . . . . Kick . | . . . . Crush . | . . . . Escape Stasis . | . . . . Rewire . | . . . . Trap . | . . . . Miscellaneous . | . . . . Route ------- -11/Scrapyard -10/Materials (discovered 2 exits: [*Mat] / *Min) -10/Mines -10/Subcaves (discovered 1 exit: [*Mat]) History --------- Turn | Location | Event 9 | -11/Scrapyard | Discovered new exit (range 15) 116 | -11/Scrapyard | Entered Materials 287 | -10/Materials | Identified exit to Mines 306 | -10/Materials | Build established: Mutant 487 | -10/Materials | Discovered new exit (range 10) 823 | -10/Materials | Entered Mines 903 | -10/Mines | Found a hidden stash of uninstalled traps 1209 | -10/Mines | Learned location of 1 exit from Materials 1226 | -10/Mines | A weapon hastily lodged in a ceiling crevice suddenly fell to the ground 1362 | -10/Mines | Discovered new exit (range 9) 1376 | -10/Mines | Entered Subcaves 1408 | -10/Subcaves | A swath of the cavern ceiling suddenly collapsed 1753 | -10/Subcaves | Core integrity fell below 50% 2186 | -10/Subcaves | Discovered new exit (range 4) 2333 | -10/Subcaves | Core integrity fell below 20% 3019 | -10/Subcaves | Disturbed a concealed Subdweller 3021 | -10/Subcaves | Destroyed by X6-R02(R) with Subdweller Machine Gun Last Messages --------------- 02349_ QK-O2C(R) destroyed. 02352_ Acquired 84 matter. 02359_ Acquired Core Shielding. 02386_ Acquired 9 matter. 02405_ Acquired 1 matter. 02605_ Dropped Autogun. 02606_ Acquired Sub. Machine Gun. 02675_ Subatomizers dissect the Sub. Machine Gun. 02984_ Imp. Treads destroyed. 02987_ S-10 Pest destroyed. 02993_ Flight Unit fries itself beyond repair. 03002_ Lgt. Ion Engine fries itself beyond repair. 03011_ Critical hit (Burn: +37). 03012_ Y-45 Defender suffers critical hit (Destroy). 03012_ Y-45 Defender destroyed. 03015_ Acquired 59 matter. 03019_ X6-R02(R) angrily emerges from the Twisted Machinery. 03020_ Beam Rifle fries itself beyond repair. Map ----- +----------------------------------------------------+ | ????## ##??????????????????????????????????????? | | ????# #???????????????????????????????????????? | | ????## ##??????????????????????????????????????? | | ?????## ##?????????????????????????????????????? | | ?????## ##???????????????? ????????????????? | | ##??## #???????????????? ??????????????? | | #### #???????????????? ????????????? | | ## ##???????????????? ????????????? | | ## #???????????????? ????????????? | | ### ###???###????????? ?????????????? | | #### # #???# #????????? ?? ?????????? | | ## #??## #????????? ??? ##????????? | | ## ##?# #????????? ?? ### ?????? | | ## ### ### #????????? ?? ?????? | | ### ##?# ##?????????# #? ?????? | | #?####??# ##??????????# ## ??????? | | #???????# ####???????????# ?????????? | | #???????# #??###????????## #???????????? | | ###?????## #### #???????## #????????????? | | # ####??## ## #??????## # ## #????????????? | | #### ######?# ##???????????? | | # # # ## ### #???????????? | | # ### #???????? | | ### ##???????? | | ## ## ## #### #??? ##????????? | | #### ############%@#??## #????###?????????? | | #??# ##??????????#*#R$$"# #????????????????? | | ???## # ##???????????# #<$$<# #????????????????? | | ????#"""###????????????# ##<<## #????????????????? | | ###"##?????????????# #### #????????????????? | | #""""#?????????????## ##????????????????? | | #"#"####?????????????########?????????????????? | | # ### #??????????????????????????????????????? | | #??????????????????????????????????????? | | ##??????????????????????????????????????? | | ##???????????????????????????????????????? | | #????????????????????????????????????????? | | ????????????????????????????????????????? | | ????????????????????????????????????????? | | ????????????????????????????????????????? | | ????????????????????????????????????????? | | #???????????????????????????????????????? | | #???????????????????????????????????????? | | ##???????????????????????????????????????? | | ?? ##?????????????????????????????????????????? | | ???? ???????????????????????????????????????????? | | ?????????????????????????????????????????????????? | | ?????????????????????????????????????????????????? | | ?????????????????????????????????????????????????? | | ?????????????????????????????????????????????????? | +----------------------------------------------------+ Best States ------------- Heat Dissipation 25 Energy Generation 10 Energy Capacity 250 Matter Stores 300 Matter Capacity 300 Sight Range 21 Terrain Scan Density 10 Core Shielding 20 Power Shielding 33 Evasion (%) 40 Recoil Reduction 2 Item Schematics ----------------- None Robot Schematics ------------------ None Fabricated ------------ Nothing Alien Tech Used ----------------- None Achievements -------------- None Challenges ------------ None Game ------ Seed ImpactMassRigger Manual? 0 Play Time 00:23:34 Cumulative 5.8 hours Start 2024.06.22 @ 23:30:49 End 2024.06.22 @ 23:53:20 Sessions 1 Manual Loads 0 Difficulty Rogue Special Mode None Game No. 5 Rogue 5 Adventurer 0 Explorer 0 Win Type - Total 0 Types 0/0/0/0/0/0/0/0/0 Lore% 10 Gallery% 11 Achievement% 12 Wizard Run 0 Options --------- Layout 1 ASCII 0 Keyboard 0 Movement Vi Keybinds 0 Fullscreen 1 Font 16/SmallcapsGlow Map View 55x38 Zoom Use 0% Tactical HUD 1 Map Filters NONE Filters NONE Steam 1 RUN: 5570fd07-2f48-4fa0-a21d-97bd073994e5